Workbook

Sheet List1
A1: Dstum | B1: 0 | C1: Platební bilance ČR-VM | D1: Kontrola | E1: Zeman | F1: Rychetský | G1: Nykodým | H1: Kůrka | I1: Polák | J1: Šihavý | K1: Panzerhauer | L1: Chaloupková | M1: Škopková | N1: Kočandrlová | O1: Luhan | P1: Růička | Q1: Weissová | R1: Fikar | S1: Jaroš | T1: Pokorný | U1: Tlustá | V1: Hekrová | W1: Honzík
B2: 0
B3: 7000000 | C3: 42C406/2009 OSPha2 Weissová | Q3: =1*B3 -> 7000000
B4: 124782500 | C4: 15C151/2012 OSPha2 Růžička | P4: =1*B4 -> 124782500
B5: 7844653 | C5: 20C582/2009 OSPM VK Kočandr | N5: =1*B5 -> 7844653
B6: 217698 | C6: 23C38/2013-10 OSPM/Fikar
B7: 17659 | C7: RWE_Kočandrlová_Luhan | O7: 7300
B8: 44241 | C8: Vykonané exekuce (musí vrátit)
B9: 169590 | C9: Státní dluh na jednoho
B10: 6443 | C10: palmáre Honzík/Hekrová/Jaroš/Pokorný | D10: =SUM(E10:AB10) -> 6443 | S10: =B10/3 -> 2147.666667 | V10: =B10/3 -> 2147.666667 | W10: =B10/3 -> 2147.666667
B11: 11496819 | C11: 19C28/98 | D11: =SUM(E11:AB11) -> 11496819 | E11: =B11/2 -> 5748409.5 | F11: =B11/2 -> 5748409.5
B21: 0 | C21: =SUM(B2:B9)&" ( má dáti celkem)" -> 140076341 ( má dáti celkem) | E21: =SUM(E2:E9) -> 0 | F21: 0 | G21: 0 | H21: 0 | I21: 0 | J21: 0 | K21: 0 | L21: 0 | M21: 0 | N21: 7844653 | O21: 7300 | P21: 124782500 | Q21: 7000000 | R21: 0 | S21: 0 | U21: 0 | V21: 0 | W21: 0 | X21: 0 | Y21: 0 | Z21: 0 | AA21: 0 | AB21: 0
B22: 0 | D22: =SUM(E21:AB21) -> 139634453
B23: 0
B24: =-166534*0.79 -> -131561.86 | C24: 120713 ČRMPMP
B25: =-132438*0.79 -> -104626.02 | C25: 121018 ČRMSCR odškod
B26: =-166534*0.79 -> -131561.86 | C26: 140206 ČRMPMP náhrada mzdy
B27: =- (7192*12*0.79+6463* DATEDIF("16.01.2013",TODAY(),"M")*0.79) -> -277516.73 | C27: duchod vyplacený k dnešku
B28: 0
B29: 0 | C29: =SUM(B22:B27)&" (dala celkem superčistě)" -> -645266,47 (dala celkem superčistě)
A31: =TODAY() -> 2016-06-20 | B31: =SUM(B1:B29) -> 150934336.5 | C31: Pohledávka vůči Vaší ČR k dnešnímu dni | E31: =SUM(E2:E29) -> 5748409.5 | F31: 5748409.5 | G31: 0 | H31: 0 | I31: 0 | J31: 0 | K31: 0 | L31: 0 | M31: 0 | N31: 15689306 | O31: =SUM(B31:N31) -> 178120461.5 | P31: =SUM(P4:P29) -> 249565000 | Q31: =SUM(Q3:Q29) -> 14000000 | R31: =SUM(R6:R29) -> 0 | S31: =SUM(S10:S29) -> 2147.666667 | U31: =SUM(B31:S31) -> 619808070.7 | V31: =SUM(V10:V29) -> 2147.666667 | W31: =SUM(W10:W29) -> 2147.666667
